fUST/lending_fUST_20260107
["ID","MTS","AMOUNT","RATE_DAILY","PERIOD"]
[400668092,1767775865015,-500.0,0.00028219,2]
[400668093,1767775865024,-500.0,0.00028219,2]
[400668094,1767775865034,-3991.84,0.00028219,2]
[400668095,1767775865043,-604.5691419,0.00028219,2]
[400668096,1767775865052,-500.0,0.00028219,2]
[400668097,1767775865061,-500.0,0.00028219,2]
[400668098,1767775865070,-576.51854464,0.00028219,2]
[400668099,1767775865079,-280.77710998,0.00028219,2]
[400668100,1767775865089,-500.0,0.00028219,2]
[400668101,1767775865098,-500.0,0.00028219,2]
[400668103,1767775865107,-525.31959947,0.00028219,2]
[400668105,1767775865116,-500.0,0.00028219,2]
[400668107,1767775865125,-500.0,0.00028219,2]
[400668108,1767775865135,-500.0,0.00028219,2]
[400668109,1767775865144,-500.0,0.00028219,2]
[400668110,1767775865154,-500.0,0.00028219,2]
[400668111,1767775865164,-500.0,0.00028219,2]
[400668112,1767775865174,-345.3181151,0.00028219,2]
[400668113,1767775865183,-242.04293168,0.00028219,2]
[400668114,1767775865193,-500.0,0.00028219,2]
[400668115,1767775865203,-500.0,0.00028219,2]
[400668116,1767775865212,-574.24165646,0.00028219,2]
[400668117,1767775865222,-725.03,0.00028219,2]
[400668118,1767775865231,-500.0,0.00028219,2]
[400668119,1767775865240,-500.0,0.00028219,2]
[400668121,1767775865252,-500.0,0.00028219,2]
[400668123,1767775865261,-500.0,0.00028219,2]
[400668125,1767775865271,-500.0,0.00028219,2]
[400668127,1767775865279,-500.0,0.00028219,2]
[400668129,1767775865288,-528.5328738,0.00028219,2]
[400668131,1767775865297,-836.74,0.00028219,2]
[400668133,1767775865306,-500.0,0.00028219,2]
[400668135,1767775865315,-500.0,0.00028219,2]
[400668136,1767775865324,-500.0,0.00028219,2]
[400668138,1767775865333,-500.0,0.00028219,2]
[400668140,1767775865342,-956.27,0.00028219,2]
[400668142,1767775865352,-235.37622654,0.00028219,2]
[400668144,1767775865361,-500.0,0.00028219,2]
[400668146,1767775865371,-500.0,0.00028219,2]
[400668149,1767775865380,-292.0,0.00028219,2]
[400668151,1767775865389,-500.0,0.00028219,2]
[400668152,1767775865398,-201.87565185,0.00028219,2]
[400668154,1767775865409,-500.0,0.00028219,2]
[400668156,1767775865418,-500.0,0.00028219,2]
[400668158,1767775865427,-453.30260385,0.00028219,2]
[400668160,1767775865436,-500.0,0.00028219,2]
[400668162,1767775865445,-178.56719036,0.00028219,2]
[400668164,1767775865455,-563.87773435,0.00028219,2]
[400668166,1767775865465,-437.57170781,0.00028219,2]
[400668168,1767775865475,-500.0,0.00028219,2]
[400668170,1767775865484,-500.0,0.00028219,2]
[400668172,1767775865494,-500.0,0.00028219,2]
[400668174,1767775865503,-500.0,0.00028219,2]
[400668176,1767775865512,-500.0,0.00028219,2]
[400668178,1767775865521,-246.34601962,0.00028219,2]
[400668180,1767775865531,-500.0,0.00028219,2]
[400668182,1767775865540,-500.0,0.00028219,2]
[400668184,1767775865549,-500.0,0.00028219,2]
[400668186,1767775865558,-500.0,0.00028219,2]
[400668188,1767775865569,-500.0,0.00028219,2]
[400668190,1767775865578,-500.0,0.00028219,2]
[400668192,1767775865588,-500.0,0.00028219,2]
[400668194,1767775865596,-500.0,0.00028219,2]
[400668196,1767775865606,-500.0,0.00028219,2]
[400668198,1767775865615,-615.69390191,0.00028219,2]
[400668200,1767775865626,-500.0,0.00028219,2]
[400668202,1767775865638,-218.66129606,0.00028219,2]
[400668204,1767775865647,-500.0,0.00028219,2]
[400668206,1767775865656,-4613.91,0.00028219,2]
[400668208,1767775865665,-500.0,0.00028219,2]
[400668210,1767775865676,-500.0,0.00028219,2]
[400668212,1767775865685,-678.0,0.00028219,2]
[400668214,1767775865694,-14665.45,0.00028219,2]
[400668216,1767775865704,-500.0,0.00028219,2]
[400668218,1767775865713,-500.0,0.00028219,2]
[400668220,1767775865724,-443.89076946,0.00028219,2]
[400668222,1767775865735,-500.0,0.00028219,2]
[400668224,1767775865748,-500.0,0.00028219,2]
[400668226,1767775865758,-500.0,0.00028219,2]
[400668228,1767775865768,-500.0,0.00028219,2]
[400668230,1767775865778,-500.0,0.00028219,2]
[400668232,1767775865789,-588.39283623,0.00028219,2]
[400668234,1767775865799,-500.0,0.00028219,2]
[400668236,1767775865808,-500.0,0.00028219,2]
[400668238,1767775865818,-594.26062475,0.00028219,2]
[400668240,1767775865826,-500.0,0.00028219,2]
[400668242,1767775865835,-500.0,0.00028219,2]
[400668244,1767775865844,-500.0,0.00028219,2]
[400668246,1767775865853,-500.0,0.00028219,2]
[400668248,1767775865862,-500.0,0.00028219,2]
[400668250,1767775865871,-2787.6,0.00028219,2]
[400668252,1767775865882,-500.0,0.00028219,2]
[400668254,1767775865891,-375.44951632,0.00028219,2]
[400668256,1767775865900,-186.99690557,0.00028219,2]
[400668258,1767775865910,-500.0,0.00028219,2]
[400668260,1767775865920,-661.34,0.00028219,2]
[400668262,1767775865930,-572.81538707,0.00028219,2]
[400668264,1767775865942,-500.0,0.00028219,2]
[400668266,1767775865952,-500.0,0.00028219,2]
[400668268,1767775865962,-556.73214678,0.00028219,2]
[400668270,1767775865971,-500.0,0.00028219,2]
[400668273,1767775865980,-334.58364315,0.00028219,2]
[400668275,1767775865990,-500.0,0.00028219,2]
[400668277,1767775866000,-500.0,0.00028219,2]
[400668278,1767775866009,-534.78953106,0.00028219,2]
[400668280,1767775866018,-500.0,0.00028219,2]
[400668282,1767775866028,-500.0,0.00028219,2]
[400668284,1767775866037,-500.0,0.00028219,2]
[400668286,1767775866046,-231.925611,0.00028219,2]
[400668288,1767775866056,-297.98489673,0.00028219,2]
[400668290,1767775866065,-208.54613436,0.00028219,2]
[400668292,1767775866075,-500.0,0.00028219,2]
[400668294,1767775866085,-505.05,0.00028219,2]
[400668296,1767775866094,-500.0,0.00028219,2]
[400668298,1767775866104,-3024.23,0.00028219,2]
[400668300,1767775866113,-500.0,0.00028219,2]
[400668302,1767775866122,-500.0,0.00028219,2]
[400668304,1767775866131,-717.62,0.00028219,2]
[400668306,1767775866140,-496.84809073,0.00028219,2]
[400668309,1767775866150,-500.0,0.00028219,2]
[400668310,1767775866159,-500.0,0.00028219,2]
[400668313,1767775866169,-500.0,0.00028219,2]
[400668315,1767775866179,-909.99,0.00028219,2]
[400668317,1767775866189,-557.5159063,0.00028219,2]
[400668319,1767775866198,-301.53487192,0.00028219,2]
[400668321,1767775866208,-500.0,0.00028219,2]
[400668323,1767775866217,-500.0,0.00028219,2]
[400668325,1767775866226,-500.0,0.00028219,2]
[400668327,1767775866235,-500.0,0.00028219,2]
[400668329,1767775866244,-601.36,0.00028219,2]
[400668331,1767775866253,-544.22588771,0.00028219,2]
[400668333,1767775866262,-258.21390924,0.00028219,2]
[400668335,1767775866272,-500.0,0.00028219,2]
[400668337,1767775866281,-500.0,0.00028219,2]
[400668339,1767775866290,-500.0,0.00028219,2]
[400668341,1767775866300,-550.76751835,0.00028219,2]
[400668343,1767775866309,-291.59561338,0.00028219,2]
[400668345,1767775866318,-576.98465831,0.00028219,2]
[400668347,1767775866327,-500.0,0.00028219,2]
[400668349,1767775866337,-500.0,0.00028219,2]
[400668351,1767775866346,-500.0,0.00028219,2]
[400668353,1767775866355,-500.0,0.00028219,2]
[400668355,1767775866365,-551.08967191,0.00028219,2]
[400668356,1767775866376,-853.68,0.00028219,2]
[400668358,1767775866386,-397.60413058,0.00028219,2]
[400668360,1767775866396,-186.63222322,0.00028219,2]
[400668362,1767775866405,-500.0,0.00028219,2]
[400668363,1767775866415,-500.0,0.00028219,2]
[400668365,1767775866426,-571.66610557,0.00028219,2]
[400668367,1767775866435,-392.07978129,0.00028219,2]
[400668369,1767775866445,-500.0,0.00028219,2]
[400668371,1767775866455,-1076.6,0.00028219,2]
[400668373,1767775866464,-500.0,0.00028219,2]
[400668375,1767775866473,-500.0,0.00028219,2]
[400668377,1767775866482,-493.12915307,0.00028219,2]
[400668379,1767775866492,-500.0,0.00028219,2]
[400668381,1767775866501,-523.36920545,0.00028219,2]
[400668383,1767775866511,-500.0,0.00028219,2]
[400668385,1767775866521,-500.0,0.00028219,2]
[400668401,1767775866660,-500.0,0.00028219,2]
[400668403,1767775866669,-548.79,0.00028219,2]
[400668405,1767775866679,-583.04293387,0.00028219,2]
[400668407,1767775866689,-5656.2215875,0.00028219,2]
[400668409,1767775866698,-500.0,0.00028219,2]
[400668411,1767775866708,-689.83,0.00028219,2]
[400668413,1767775866718,-500.0,0.00028219,2]
[400668415,1767775866730,-387.59341102,0.00028219,2]
[400668417,1767775866740,-500.0,0.00028219,2]
[400668419,1767775866749,-500.0,0.00028219,2]
[400668421,1767775866758,-500.0,0.00028219,2]
[400668423,1767775866771,-500.0,0.00028219,2]
[400668425,1767775866791,-500.0,0.00028219,2]
[400668427,1767775866802,-500.0,0.00028219,2]
[400668428,1767775866811,-333.7260999,0.00028219,2]
[400668430,1767775866821,-500.0,0.00028219,2]
[400668432,1767775866830,-500.0,0.00028219,2]
[400668434,1767775866840,-500.0,0.00028219,2]
[400668436,1767775866849,-690.11,0.00028219,2]
[400668438,1767775866858,-500.0,0.00028219,2]
[400668440,1767775866868,-500.0,0.00028219,2]
[400668442,1767775866877,-500.0,0.00028219,2]
[400668444,1767775866886,-500.0,0.00028219,2]
[400668446,1767775866896,-500.0,0.00028219,2]
[400668447,1767775866906,-500.0,0.00028219,2]
[400668448,1767775866916,-500.0,0.00028219,2]
[400668450,1767775866926,-500.0,0.00028219,2]
[400668452,1767775866935,-500.0,0.00028219,2]
[400668453,1767775866945,-836.4,0.00028219,2]
[400668454,1767775866960,-500.0,0.00028219,2]
[400668455,1767775866971,-500.0,0.00028219,2]
[400668456,1767775866982,-511.35973746,0.00028219,2]
[400668457,1767775866993,-500.0,0.00028219,2]
[400668458,1767775867006,-500.0,0.00028219,2]
[400668459,1767775867017,-500.0,0.00028219,2]
[400668460,1767775867029,-500.0,0.00028219,2]
[400668461,1767775867039,-500.0,0.00028219,2]
[400668462,1767775867049,-500.0,0.00028219,2]
[400668463,1767775867059,-500.0,0.00028219,2]
[400668464,1767775867069,-797.84,0.00028219,2]
[400668465,1767775867084,-500.0,0.00028219,2]
[400668466,1767775867094,-500.0,0.00028219,2]
[400668467,1767775867105,-500.0,0.00028219,2]
[400668468,1767775867116,-541.4152828,0.00028219,2]
[400668469,1767775867128,-500.0,0.00028219,2]
[400668470,1767775867138,-500.0,0.00028219,2]
[400668471,1767775867147,-3088.57,0.00028219,2]
[400668472,1767775867157,-500.0,0.00028219,2]
[400668473,1767775867166,-500.0,0.00028219,2]
[400668474,1767775867176,-585.96572099,0.00028219,2]
[400668475,1767775867186,-500.0,0.00028219,2]
[400668476,1767775867195,-500.0,0.00028219,2]
[400668477,1767775867206,-500.0,0.00028219,2]
[400668478,1767775867217,-372.6673866,0.00028219,2]
[400668479,1767775867226,-500.0,0.00028219,2]
[400668480,1767775867236,-500.0,0.00028219,2]
[400668481,1767775867247,-500.0,0.00028219,2]
[400668482,1767775867256,-500.0,0.00028219,2]
[400668483,1767775867266,-990.0,0.0002822,2]
[400668484,1767775867276,-500.0,0.00028242,7]
[400668485,1767775867286,-191.37491647,0.00028265,18]
[400668486,1767775867296,-500.0,0.00028378,7]
[400668487,1767775867305,-357.4,0.000284,2]
[400668488,1767775867314,-243.07,0.000284,7]
[400668489,1767775867326,-25963.54,0.000284,2]
[400668490,1767775867336,-3533.37382251,0.00028401,27]
[400668491,1767775867345,-500.0,0.00028421,7]
[400668492,1767775867354,-2808.0862076,0.00028471,2]
[400668493,1767775867365,-500.0,0.00028471,7]
[400668494,1767775867375,-2000.0,0.00028489,7]
[400668495,1767775867385,-500.0,0.00028493,2]
[400668496,1767775867395,-500.0,0.00028493,2]
[400668497,1767775867404,-500.0,0.00028493,2]
[400668498,1767775867414,-404.10391117,0.00028493,2]
[400668499,1767775867424,-500.0,0.00028493,2]
[400668500,1767775867435,-500.0,0.00028493,2]
[400668501,1767775867446,-500.0,0.00028493,2]
[400668502,1767775867455,-500.0,0.00028493,2]
[400668503,1767775867465,-500.0,0.00028493,2]
[400668504,1767775867474,-500.0,0.00028493,2]
[400668505,1767775867483,-500.0,0.00028493,2]
[400668506,1767775867493,-569.22689749,0.00028493,2]
[400668507,1767775867504,-255.17771832,0.00028493,2]
[400668508,1767775867513,-196.0651271,0.00028493,2]
[400668509,1767775867524,-500.0,0.00028493,2]
[400668510,1767775867534,-500.0,0.00028493,2]
[400668511,1767775867544,-270.92885044,0.00028493,2]
[400668512,1767775867554,-500.0,0.00028493,2]
[400668513,1767775867563,-500.0,0.00028493,2]
[400668514,1767775867574,-500.0,0.00028493,2]
[400668515,1767775867583,-500.0,0.00028493,2]
[400668516,1767775867594,-500.0,0.00028493,2]
[400668517,1767775867603,-584.55274678,0.00028493,2]
[400668518,1767775867613,-500.0,0.00028493,2]
[400668519,1767775867622,-500.0,0.00028493,2]
[400668520,1767775867632,-500.0,0.00028493,2]
[400668521,1767775867642,-175.1016287,0.00028493,2]
[400668522,1767775867651,-559.4572558,0.00028493,2]
[400668523,1767775867660,-500.0,0.00028493,2]
[400668524,1767775867669,-557.84,0.00028493,2]
[400668525,1767775867679,-500.0,0.00028493,2]
[400668526,1767775867688,-324.83913414,0.00028493,2]
[400668527,1767775867698,-500.0,0.00028493,2]
[400668528,1767775867707,-500.0,0.00028493,2]
[400668529,1767775867716,-153.89876055,0.00028493,2]
[400668530,1767775867727,-603.11925215,0.00028493,2]
[400668531,1767775867738,-500.0,0.00028493,2]
[400668532,1767775867746,-432.4592555,0.00028493,2]
[400668533,1767775867756,-500.0,0.00028493,2]
[400668534,1767775867765,-500.0,0.00028493,2]
[400668535,1767775867774,-532.28969809,0.00028493,2]
[400668536,1767775867782,-591.07924486,0.00028493,2]
[400668537,1767775867791,-500.0,0.00028493,2]
[400668538,1767775867801,-500.0,0.00028493,2]
[400668539,1767775867810,-540.12053322,0.00028493,2]
[400668540,1767775867820,-500.0,0.00028493,2]
[400668541,1767775867829,-433.25646612,0.00028493,2]
[400668542,1767775867838,-500.0,0.00028493,2]
[400668543,1767775867847,-567.85923001,0.00028493,2]
[400668544,1767775867856,-500.0,0.00028493,2]
[400668545,1767775867865,-500.0,0.00028493,2]
[400668546,1767775867875,-521.34045047,0.00028493,2]
[400668547,1767775867885,-502.85593356,0.00028493,2]
[400668548,1767775867894,-500.0,0.00028493,2]
[400668549,1767775867903,-500.0,0.00028493,2]
[400668550,1767775867913,-1000.0,0.00028493,2]
[400668551,1767775867923,-500.0,0.00028493,2]
[400668552,1767775867932,-569.37040337,0.00028493,2]
[400668553,1767775867941,-516.38193011,0.00028493,2]
[400668554,1767775867951,-500.0,0.00028493,2]
[400668555,1767775867963,-500.0,0.00028493,2]
[400668556,1767775867972,-571.05933259,0.00028493,2]
[400668557,1767775867981,-500.0,0.00028493,2]
[400668558,1767775867990,-500.0,0.00028493,2]
[400668559,1767775868001,-500.0,0.00028493,2]
[400668560,1767775868010,-582.84,0.00028493,2]
[400668561,1767775868019,-500.0,0.00028493,2]
[400668562,1767775868030,-459.64619749,0.00028493,2]
[400668563,1767775868039,-500.0,0.00028493,2]
[400668564,1767775868050,-500.0,0.00028493,2]
[400668565,1767775868060,-305.31019872,0.00028493,2]
[400668566,1767775868071,-444.37026315,0.00028493,2]
[400668567,1767775868084,-913.08,0.00028493,2]
[400668568,1767775868094,-582.96883831,0.00028493,2]
[400668569,1767775868105,-500.0,0.00028493,2]
[400668570,1767775868114,-500.0,0.00028493,2]
[400668571,1767775868124,-500.0,0.00028493,2]
[400668572,1767775868135,-500.0,0.00028493,2]
[400668573,1767775868146,-500.0,0.00028493,2]
[400668574,1767775868155,-500.0,0.00028493,2]
[400668575,1767775868166,-500.0,0.00028493,2]
[400668576,1767775868176,-1000.0,0.00028493,2]
[400668577,1767775868185,-335.93426162,0.00028493,2]
[400668578,1767775868194,-500.0,0.00028493,2]
[400668579,1767775868204,-500.0,0.00028493,2]
[400668580,1767775868214,-500.0,0.00028493,2]
[400668581,1767775868224,-500.0,0.00028493,2]
[400668582,1767775868234,-173.1065143,0.00028493,2]
[400668583,1767775868244,-500.0,0.00028493,2]
[400668584,1767775868253,-513.03176102,0.00028493,2]
[400668585,1767775868264,-500.0,0.00028493,2]
[400668586,1767775868272,-756.53,0.00028493,2]
[400668587,1767775868281,-500.0,0.00028493,2]
[400668588,1767775868291,-500.0,0.00028493,2]
[400668589,1767775868301,-500.0,0.00028493,2]
[400668590,1767775868312,-500.0,0.00028493,2]
[400668591,1767775868322,-500.0,0.00028493,2]
[400668592,1767775868332,-500.0,0.00028493,2]
[400668593,1767775868342,-200.0,0.00028493,2]
[400668594,1767775868352,-500.0,0.00028493,2]
[400668595,1767775868364,-500.0,0.00028493,2]
[400668596,1767775868374,-500.0,0.00028493,2]
[400668597,1767775868385,-500.0,0.00028493,2]
[400668598,1767775868395,-500.0,0.00028493,2]
[400668599,1767775868407,-500.0,0.00028493,2]
[400668600,1767775868418,-170.02326745,0.00028493,2]
[400668601,1767775868429,-500.0,0.00028493,2]
[400668602,1767775868440,-500.0,0.00028493,2]
[400668603,1767775868452,-500.0,0.00028493,2]
[400668604,1767775868462,-500.0,0.00028493,2]
[400668605,1767775868473,-500.0,0.00028493,2]
[400668606,1767775868486,-500.0,0.00028493,2]
[400668607,1767775868497,-470.5370977,0.00028493,2]
[400668608,1767775868508,-500.0,0.00028493,2]
[400668609,1767775868519,-347.45828646,0.00028493,2]
[400668610,1767775868528,-500.0,0.00028493,2]
[400668611,1767775868541,-3991.84,0.00028493,2]
[400668612,1767775868552,-500.0,0.00028493,2]
[400668613,1767775868563,-500.0,0.00028493,2]
[400668614,1767775868573,-324.59959195,0.00028493,2]
[400668615,1767775868584,-500.0,0.00028493,2]
[400668616,1767775868595,-500.0,0.00028493,2]
[400668617,1767775868605,-500.0,0.00028493,2]
[400668618,1767775868615,-181.29761316,0.00028493,2]
[400668619,1767775868624,-500.0,0.00028493,2]
[400668620,1767775868635,-500.0,0.00028493,2]
[400668621,1767775868646,-406.29224647,0.00028493,2]
[400668622,1767775868655,-500.0,0.00028493,2]
[400668623,1767775868664,-518.11840483,0.00028493,2]
[400668624,1767775868674,-725.03,0.00028493,2]
[400668625,1767775868683,-500.0,0.00028493,2]
[400668626,1767775868693,-258.34773752,0.00028493,2]
[400668627,1767775868709,-500.0,0.00028493,2]
[400668628,1767775868724,-500.0,0.00028493,2]
[400668629,1767775868738,-500.0,0.00028493,2]
[400668630,1767775868747,-500.0,0.00028493,2]
[400668631,1767775868756,-836.74,0.00028493,2]
[400668632,1767775868766,-328.26880042,0.00028493,2]
[400668633,1767775868776,-500.0,0.00028493,2]
[400668634,1767775868786,-346.16559859,0.00028493,2]
[400668635,1767775868796,-500.0,0.00028493,2]
[400668636,1767775868809,-956.27,0.00028493,2]
[400668637,1767775868818,-168.06862482,0.00028493,2]
[400668638,1767775868828,-500.0,0.00028493,2]
[400668639,1767775868838,-500.0,0.00028493,2]
[400668640,1767775868848,-500.0,0.00028493,2]
[400668641,1767775868858,-465.53445705,0.00028493,2]
[400668642,1767775868868,-500.0,0.00028493,2]
[400668643,1767775868878,-500.0,0.00028493,2]
[400668644,1767775868888,-500.0,0.00028493,2]
[400668645,1767775868898,-500.0,0.00028493,2]
[400668646,1767775868908,-500.0,0.00028493,2]
[400668647,1767775868918,-500.0,0.00028493,2]
[400668648,1767775868928,-500.0,0.00028493,2]
[400668649,1767775868938,-546.45593612,0.00028493,2]
[400668650,1767775868948,-500.0,0.00028493,2]
[400668651,1767775868958,-500.0,0.00028493,2]
[400668652,1767775868967,-500.0,0.00028493,2]
[400668653,1767775868978,-500.0,0.00028493,2]
[400668654,1767775868988,-500.0,0.00028493,2]
[400668655,1767775868998,-500.0,0.00028493,2]
[400668656,1767775869008,-525.68506913,0.00028493,2]
[400668657,1767775869018,-500.0,0.00028493,2]
[400668658,1767775869027,-360.48511465,0.00028493,2]
[400668659,1767775869037,-4613.91,0.00028493,2]
[400668660,1767775869048,-500.0,0.00028493,2]
[400668661,1767775869058,-500.0,0.00028493,2]
[400668662,1767775869068,-678.0,0.00028493,2]
[400668663,1767775869078,-14665.45,0.00028493,2]
[400668664,1767775869088,-500.0,0.00028493,2]
[400668665,1767775869099,-500.0,0.00028493,2]
[400668666,1767775869108,-500.0,0.00028493,2]
[400668667,1767775869119,-588.96766038,0.00028493,2]
[400668668,1767775869129,-500.0,0.00028493,2]
[400668669,1767775869138,-500.0,0.00028493,2]
[400668670,1767775869148,-500.0,0.00028493,2]
[400668671,1767775869158,-500.0,0.00028493,2]
[400668672,1767775869167,-500.0,0.00028493,2]
[400668673,1767775869176,-267.31937862,0.00028493,2]
[400668674,1767775869185,-562.09533006,0.00028493,2]
[400668675,1767775869195,-500.0,0.00028493,2]
[400668676,1767775869204,-500.0,0.00028493,2]
[400668677,1767775869214,-500.0,0.00028493,2]
[400668678,1767775869224,-2787.6,0.00028493,2]
[400668679,1767775869233,-500.0,0.00028493,2]
[400668680,1767775869243,-587.76396083,0.00028493,2]
[400668681,1767775869253,-661.34,0.00028493,2]
[400668682,1767775869263,-500.0,0.00028493,2]
[400668683,1767775869274,-500.0,0.00028493,2]
[400668684,1767775869283,-500.0,0.00028493,2]
[400668685,1767775869293,-494.64547294,0.00028493,2]
[400668686,1767775869303,-500.0,0.00028493,2]
[400668687,1767775869314,-500.0,0.00028493,2]
[400668688,1767775869323,-500.0,0.00028493,2]
[400668689,1767775869332,-200.34109386,0.00028493,2]
[400668690,1767775869342,-500.0,0.00028493,2]
[400668691,1767775869352,-505.05,0.00028493,2]
[400668692,1767775869361,-500.0,0.00028493,2]
[400668693,1767775869371,-3024.23,0.00028493,2]
[400668694,1767775869537,-418.81895423,0.00028493,2]
[400668696,1767775869548,-642.55608894,0.00028493,2]
[400668698,1767775869558,-717.62,0.00028493,2]
[400668699,1767775869567,-195.02693897,0.00028493,2]
[400668700,1767775869578,-500.0,0.00028493,2]
[400668701,1767775869587,-622.55298137,0.00028493,2]
[400668702,1767775869596,-909.99,0.00028493,2]
[400668703,1767775869606,-365.39740184,0.00028493,2]
[400668704,1767775869615,-249.06198382,0.00028493,2]
[400668705,1767775869625,-500.0,0.00028493,2]
[400668706,1767775869635,-438.24721319,0.00028493,2]
[400668707,1767775869645,-601.36,0.00028493,2]
[400668708,1767775869655,-500.0,0.00028493,2]
[400668709,1767775869664,-308.09106242,0.00028493,2]
[400668710,1767775869673,-500.0,0.00028493,2]
[400668711,1767775869683,-538.56275793,0.00028493,2]
[400668712,1767775869692,-500.0,0.00028493,2]
[400668713,1767775869701,-500.0,0.00028493,2]
[400668714,1767775869710,-500.0,0.00028493,2]
[400668715,1767775869720,-853.68,0.00028493,2]
[400668716,1767775869734,-500.0,0.00028493,2]
[400668717,1767775869743,-500.0,0.00028493,2]
[400668718,1767775869752,-500.0,0.00028493,2]
[400668719,1767775869762,-1076.6,0.00028493,2]
[400668720,1767775869771,-500.0,0.00028493,2]
[400668721,1767775869781,-500.0,0.00028493,2]
[400668722,1767775869790,-207.04406824,0.00028493,2]
[400668723,1767775869800,-500.0,0.00028493,2]
[400668724,1767775869810,-338.06156399,0.00028493,2]
[400668725,1767775869819,-500.0,0.00028493,2]
[400668726,1767775869828,-548.79,0.00028493,2]
[400668727,1767775869837,-5656.2215875,0.00028493,2]
[400668728,1767775869847,-500.0,0.00028493,2]
[400668729,1767775869856,-689.83,0.00028493,2]
[400668730,1767775869865,-404.42869374,0.00028493,2]
[400668731,1767775869875,-500.0,0.00028493,2]
[400668733,1767775869885,-500.0,0.00028493,2]
[400668734,1767775869894,-640.93883363,0.00028493,2]
[400668735,1767775869903,-500.0,0.00028493,2]
[400668737,1767775869912,-500.0,0.00028493,2]
[400668739,1767775869921,-500.0,0.00028493,2]
[400668741,1767775869930,-500.0,0.00028493,2]
[400668743,1767775869939,-500.0,0.00028493,2]
[400668745,1767775869949,-500.0,0.00028493,2]
[400668747,1767775869958,-690.11,0.00028493,2]
[400668749,1767775869967,-500.0,0.00028493,2]
[400668751,1767775869976,-500.0,0.00028493,2]
[400668753,1767775869985,-500.0,0.00028493,2]
[400668755,1767775869994,-500.0,0.00028493,2]
[400668756,1767775870003,-500.0,0.00028493,2]
[400668758,1767775870012,-500.0,0.00028493,2]
[400668760,1767775870022,-224.28751616,0.00028493,2]
[400668762,1767775870031,-500.0,0.00028493,2]
[400668764,1767775870040,-500.0,0.00028493,2]
[400668766,1767775870049,-836.4,0.00028493,2]
[400668768,1767775870058,-500.0,0.00028493,2]
[400668770,1767775870068,-500.0,0.00028493,2]
[400668772,1767775870078,-500.0,0.00028493,2]
[400668774,1767775870087,-500.0,0.00028493,2]
[400668776,1767775870096,-500.0,0.00028493,2]
[400668778,1767775870105,-500.0,0.00028493,2]
[400668780,1767775870115,-257.71828862,0.00028493,2]
[400668782,1767775870125,-410.66118175,0.00028493,2]
[400668784,1767775870135,-215.570059,0.00028493,7]
[400668786,1767775870144,-500.0,0.00028493,2]
[400668788,1767775870153,-215.570059,0.00028493,7]
[400668790,1767775870162,-797.84,0.00028493,2]
[400668792,1767775870171,-500.0,0.00028493,2]
[400668794,1767775870181,-215.570059,0.00028493,7]
[400668796,1767775870191,-567.30576504,0.00028493,2]
[400668798,1767775870200,-467.59208785,0.00028493,2]
[400668800,1767775870210,-215.570059,0.00028493,7]